bitfinex/quotes_BTCUSD_20240731
["timestamp","ask_amount","ask_price","bid_price","bid_amount"]
[1722452668415,0.92026863,66639.0,66638.0,0.010284]
[1722452668691,1.20039263,66639.0,66638.0,0.009284]
[1722452668905,1.22839263,66639.0,66638.0,0.010284]
[1722452669115,1.24239263,66639.0,66638.0,0.009284]
[1722452669328,1.53051663,66639.0,66638.0,0.009284]
[1722452669542,1.53051663,66639.0,66638.0,0.010284]
[1722452669543,1.53351663,66639.0,66638.0,0.010284]
[1722452669753,1.79599793,66639.0,66638.0,0.010284]
[1722452669967,1.79755213,66639.0,66638.0,0.002284]
[1722452670388,1.78299793,66639.0,66638.0,0.002284]
[1722452671015,1.78455213,66639.0,66638.0,0.002284]
[1722452671424,1.63051663,66639.0,66638.0,0.001284]
[1722452671852,1.65851663,66639.0,66638.0,0.002284]
[1722452672074,1.34439263,66639.0,66638.0,0.001284]
[1722452672302,1.33039263,66639.0,66638.0,0.001284]
[1722452672577,1.35839263,66639.0,66638.0,0.002284]
[1722452672781,1.35839263,66639.0,66638.0,0.001284]
[1722452672992,1.35839263,66639.0,66638.0,0.002284]
[1722452673198,1.79435589,66639.0,66638.0,0.002284]
[1722452673407,1.80835589,66639.0,66638.0,0.002284]
[1722452674246,0.03,66632.0,66631.0,0.009784]
[1722452674454,1.64890791,66627.0,66626.0,0.000913]
[1722452674665,1.95127564,66627.0,66626.0,0.000913]
[1722452675138,1.89845963,66627.0,66626.0,0.000913]
[1722452675356,1.00040363,66627.0,66626.0,0.000913]
[1722452675805,1.01440363,66627.0,66626.0,0.000913]
[1722452676025,1.02840363,66627.0,66626.0,0.000913]
[1722452676529,0.61422563,66627.0,66626.0,0.000913]
[1722452676762,0.62822563,66627.0,66626.0,0.000913]
[1722452676988,1.06225929,66627.0,66626.0,0.000913]
[1722452677231,1.55875963,66627.0,66626.0,0.000913]
[1722452677475,1.92645963,66627.0,66626.0,0.000913]
[1722452678169,1.91245963,66627.0,66626.0,0.000913]
[1722452678381,1.92645963,66627.0,66626.0,0.001913]
[1722452678591,2.06194093,66627.0,66626.0,0.001913]
[1722452678810,2.06194093,66627.0,66626.0,0.000913]
[1722452679221,2.07594093,66627.0,66626.0,0.001913]
[1722452679426,2.04794093,66627.0,66626.0,0.000913]
[1722452679874,2.06194093,66627.0,66626.0,0.000913]
[1722452680442,2.07123593,66627.0,66626.0,0.000913]
[1722452680866,2.08523593,66627.0,66626.0,0.001913]
[1722452681290,2.38541393,66627.0,66626.0,0.001913]
[1722452681968,2.40841393,66627.0,66626.0,0.001913]
[1722452684703,1.08118691,66617.0,66616.0,0.003197]
[1722452684914,1.23073863,66617.0,66616.0,0.003197]
[1722452685126,1.20073863,66617.0,66616.0,0.003197]
[1722452685971,1.20073863,66617.0,66616.0,0.004197]
[1722452685972,1.21173863,66617.0,66616.0,0.004197]
[1722452686185,1.54196163,66617.0,66616.0,0.004197]
[1722452686397,1.79144293,66617.0,66616.0,0.004197]
[1722452686833,1.80544293,66617.0,66616.0,0.004197]
[1722452687245,2.09466593,66617.0,66616.0,0.003197]
[1722452687453,1.80544293,66617.0,66616.0,0.004197]
[1722452687866,1.79144293,66617.0,66616.0,0.003197]
[1722452688176,1.80244293,66617.0,66616.0,0.004197]
[1722452688291,1.79144293,66617.0,66616.0,0.004197]
[1722452688507,1.78044293,66617.0,66616.0,0.003197]
[1722452688722,1.77444293,66617.0,66616.0,0.004197]
[1722452688931,1.77444293,66617.0,66616.0,0.003197]
[1722452689135,1.31473863,66617.0,66616.0,0.152197]
[1722452689357,1.34273863,66617.0,66616.0,0.153197]
[1722452689782,1.32873863,66617.0,66616.0,0.153197]
[1722452690034,1.02851563,66617.0,66616.0,0.153197]
[1722452690266,1.04251563,66617.0,66616.0,0.153197]
[1722452690486,1.43461099,66617.0,66616.0,0.152197]
[1722452690666,1.44861099,66617.0,66616.0,0.152197]
[1722452691349,1.46061099,66617.0,66616.0,0.152197]
[1722452691792,1.16038799,66617.0,66616.0,0.152197]
[1722452692265,1.49061099,66617.0,66616.0,0.003197]
[1722452692702,1.79083399,66617.0,66616.0,0.003197]
[1722452692923,1.49061099,66617.0,66616.0,0.003197]
[1722452693171,1.79083399,66617.0,66616.0,0.003197]
[1722452694002,1.81383399,66617.0,66616.0,0.003197]
[1722452694600,2.11405699,66617.0,66616.0,0.003197]
[1722452694851,1.81383399,66617.0,66616.0,0.003197]
[1722452695056,1.80183399,66617.0,66616.0,0.003197]
[1722452695238,2.10205699,66617.0,66616.0,0.003197]
[1722452695453,1.85687823,66617.0,66616.0,0.003197]
[1722452695668,1.80183399,66617.0,66616.0,0.003197]
[1722452696077,1.81583399,66617.0,66616.0,0.003197]
[1722452698112,1.35873863,66617.0,66616.0,0.003197]
[1722452698711,1.65896163,66617.0,66616.0,0.003197]
[1722452699148,1.35873863,66617.0,66616.0,0.003197]
[1722452699603,1.65896163,66617.0,66616.0,0.003197]
[1722452699808,1.08121891,66615.0,66614.0,0.004492]
[1722452700051,1.33077063,66615.0,66614.0,0.004492]
[1722452700191,1.63100263,66615.0,66614.0,0.004492]
[1722452700836,1.64500263,66615.0,66614.0,0.004492]
[1722452701039,1.32477063,66615.0,66614.0,0.004492]
[1722452701244,1.31477063,66615.0,66614.0,0.004492]
[1722452701464,1.32877063,66615.0,66614.0,0.004492]
[1722452701685,1.48825193,66615.0,66614.0,0.004492]
[1722452701847,1.47825193,66615.0,66614.0,0.004492]
[1722452702059,1.48825193,66615.0,66614.0,0.004492]
[1722452702374,1.02813172,66615.0,66614.0,0.004492]
[1722452702577,0.92853863,66615.0,66614.0,0.152392]
[1722452702961,0.47875491,66615.0,66614.0,0.152392]
[1722452703384,0.47875491,66615.0,66614.0,0.602747]
[1722452703385,0.028,66615.0,66614.0,0.602747]
[1722452703605,0.02840691,66615.0,66614.0,0.22019311]
[1722452703815,0.00040691,66615.0,66614.0,0.152392]
[1722452704023,0.00840691,66615.0,66614.0,0.602747]
[1722452704228,0.02240691,66615.0,66614.0,0.152392]
[1722452704446,0.01440691,66615.0,66614.0,0.152392]
[1722452704854,0.64576922,66615.0,66614.0,0.152392]
[1722452705063,0.94600122,66615.0,66614.0,0.152392]
[1722452705235,0.93200122,66615.0,66614.0,0.152392]
[1722452705655,1.23223322,66615.0,66614.0,0.152392]
[1722452705987,1.23223322,66615.0,66614.0,0.004492]
[1722452706385,1.56246522,66615.0,66614.0,0.004492]
[1722452706583,1.66246522,66615.0,66614.0,0.004492]
[1722452706842,1.66646522,66615.0,66614.0,0.004492]
[1722452707304,1.66246522,66615.0,66614.0,0.004492]
[1722452707515,1.67646522,66615.0,66614.0,0.004492]
[1722452707939,1.32477063,66615.0,66614.0,0.004492]
[1722452708161,1.31677063,66615.0,66614.0,0.004492]
[1722452708368,1.32477063,66615.0,66614.0,0.004492]
[1722452708545,1.33877063,66615.0,66614.0,0.004492]
[1722452708760,0.43807463,66615.0,66614.0,0.004492]
[1722452708986,0.47875491,66615.0,66614.0,0.146292]
[1722452709206,0.17852291,66615.0,66614.0,0.146292]
[1722452709458,0.02840691,66615.0,66614.0,0.146292]
[1722452709669,0.47875491,66615.0,66614.0,0.146292]
[1722452709907,0.17852291,66615.0,66614.0,0.146292]
[1722452710123,0.01440691,66615.0,66614.0,0.146292]
[1722452710769,0.17452291,66615.0,66614.0,0.146292]
[1722452711037,0.15052291,66615.0,66614.0,0.146292]
[1722452711248,0.76698691,66615.0,66614.0,0.146292]
[1722452711464,1.06521891,66615.0,66614.0,0.146292]
[1722452711716,1.06521891,66615.0,66614.0,0.004492]
[1722452711717,1.33929252,66615.0,66614.0,0.004492]
[1722452711948,1.31929252,66615.0,66614.0,0.004492]
[1722452712193,1.33929252,66615.0,66614.0,0.004492]
[1722452712417,1.21177063,66615.0,66614.0,0.004492]
[1722452712626,1.26917169,66615.0,66614.0,0.004492]
[1722452712838,1.20177063,66615.0,66614.0,0.004492]
[1722452713046,1.20077063,66615.0,66614.0,0.004492]
[1722452713249,1.30617169,66615.0,66614.0,0.004492]
[1722452713463,1.23877063,66615.0,66614.0,0.004492]
[1722452713671,1.36225193,66615.0,66614.0,0.004492]
[1722452714085,1.38225193,66615.0,66614.0,0.004492]
[1722452714501,1.36225193,66615.0,66614.0,0.004492]
[1722452714934,1.35225193,66615.0,66614.0,0.004492]
[1722452715144,1.20277063,66615.0,66614.0,0.004492]
[1722452715387,1.03745164,66615.0,66614.0,0.004492]
[1722452715636,0.90953863,66615.0,66614.0,0.004492]
[1722452716103,0.72174996,66615.0,66614.0,0.153892]
[1722452716312,0.90953863,66615.0,66614.0,0.153892]
[1722452716518,0.45975491,66615.0,66614.0,0.153892]
[1722452716730,0.00940691,66615.0,66614.0,0.153892]
[1722452716933,0.09935915,66615.0,66614.0,0.153892]
[1722452717153,0.00940691,66615.0,66614.0,0.153892]
[1722452717383,0.09935915,66615.0,66614.0,0.153892]
[1722452717619,0.00940691,66615.0,66614.0,0.3644862]
[1722452717832,0.01096111,66615.0,66614.0,0.604247]
[1722452718057,0.07842433,66615.0,66614.0,0.604247]
[1722452718291,0.07842433,66615.0,66614.0,0.904484]
[1722452718292,0.07646102,66615.0,66614.0,0.904484]
[1722452718495,0.12185318,66615.0,66614.0,0.604247]
[1722452718955,0.12186418,66615.0,66614.0,0.604247]
[1722452719363,0.00940691,66615.0,66614.0,0.604247]
[1722452719577,0.15952291,66615.0,66614.0,0.153892]
[1722452719790,0.00940691,66615.0,66614.0,0.153892]
[1722452720223,0.14435563,66615.0,66614.0,0.153892]
[1722452720435,0.46130911,66615.0,66614.0,0.153892]
[1722452720852,0.75998691,66615.0,66614.0,0.153892]
[1722452721263,1.33112887,66615.0,66614.0,0.153892]
[1722452721462,1.48294619,66615.0,66614.0,0.153892]
[1722452721887,1.33112887,66615.0,66614.0,0.153892]
[1722452722313,1.66136087,66615.0,66614.0,0.153892]
[1722452722512,1.66136087,66615.0,66614.0,0.004492]
[1722452722722,1.76136087,66615.0,66614.0,0.004492]
[1722452722928,1.74136087,66615.0,66614.0,0.004492]
[1722452723992,1.64000263,66615.0,66614.0,0.004492]
[1722452724209,1.94023463,66615.0,66614.0,0.004492]
[1722452724622,1.97444679,66615.0,66614.0,0.004492]
[1722452724800,1.66721479,66615.0,66614.0,0.004492]
[1722452725256,1.69521479,66615.0,66614.0,0.004492]
[1722452725456,1.84469609,66615.0,66614.0,0.004492]
[1722452726091,1.69521479,66615.0,66614.0,0.004492]
[1722452726295,1.65900263,66615.0,66614.0,0.004492]
[1722452726572,1.90308483,66615.0,66614.0,0.004492]
[1722452726803,1.91708483,66615.0,66614.0,0.004492]
[1722452727436,1.69556085,66615.0,66614.0,0.004492]
[1722452727641,1.84504215,66615.0,66614.0,0.004492]
[1722452728682,2.06653733,66615.0,66614.0,0.004492]
[1722452729070,2.36676933,66615.0,66614.0,1e-06]
[1722452729275,1.90902143,66615.0,66614.0,1e-06]
[1722452729558,2.20925343,66615.0,66614.0,1e-06]
[1722452729697,1.83148393,66615.0,66614.0,1e-06]
[1722452729898,1.86790767,66615.0,66614.0,1e-06]
[1722452730862,2.16813967,66615.0,66614.0,1e-06]
[1722452731062,1.86790767,66615.0,66614.0,1e-06]
[1722452731365,1.67542637,66615.0,66614.0,1e-06]
[1722452731539,1.91686511,66615.0,66614.0,1e-06]
[1722452731746,1.89686511,66615.0,66614.0,1e-06]
[1722452731919,1.34813249,66615.0,66614.0,1e-06]
[1722452732102,1.37461271,66615.0,66614.0,1e-06]
[1722452732311,1.52409401,66615.0,66614.0,1e-06]
[1722452732524,1.54409175,66615.0,66614.0,1e-06]
[1722452732728,1.5240929,66615.0,66614.0,1e-06]
[1722452732945,1.5140929,66615.0,66614.0,1e-06]
[1722452733200,1.48761283,66615.0,66614.0,1e-06]
[1722452734796,0.03776781,66615.0,66614.0,0.137801]
[1722452735031,0.03860781,66615.0,66614.0,0.137801]
[1722452735250,0.18872381,66615.0,66614.0,0.14259692]
[1722452735406,0.48895581,66615.0,66614.0,0.14259692]
[1722452735561,0.78918781,66615.0,66614.0,0.14259692]
[1722452735777,0.47495581,66615.0,66614.0,0.137801]
[1722452736405,0.48495581,66615.0,66614.0,0.137801]
[1722452736605,0.47095581,66615.0,66614.0,0.137801]
[1722452736772,0.46095581,66615.0,66614.0,0.137801]
[1722452736974,0.01724691,66615.0,66614.0,0.3017491]
[1722452737175,0.01724691,66615.0,66614.0,0.30654431]
[1722452737423,0.15181527,66624.0,66614.0,0.30654431]
[1722452737424,0.08994067,66616.0,66614.0,0.01862631]
[1722452737595,0.00085484,66617.0,66615.0,0.60027276]
[1722452737805,0.00085484,66619.0,66618.0,0.150109]
[1722452738104,0.04496349,66623.0,66622.0,0.450301]
[1722452738310,0.09078067,66627.0,66626.0,0.531474]
[1722452738311,0.00084,66627.0,66626.0,0.531474]
[1722452738563,0.00124691,66627.0,66626.0,0.295391]
[1722452738711,0.00084,66627.0,66626.0,0.60034984]
[1722452738914,0.00084,66627.0,66626.0,0.90053284]
[1722452738915,0.04578045,66627.0,66626.0,0.90053284]
[1722452739144,0.00084,66627.0,66626.0,0.9561413]
[1722452739592,0.00084,66627.0,66626.0,0.2096843]
[1722452739793,0.00184,66627.0,66626.0,0.3597753]
[1722452740050,0.00124691,66627.0,66626.0,0.6559583]
[1722452740182,0.00224691,66627.0,66626.0,0.5098673]
[1722452740401,0.00184,66627.0,66626.0,0.6599583]
[1722452740755,0.00184,66627.0,66626.0,0.9561413]
[1722452741390,0.00184,66627.0,66626.0,1.40587602]
[1722452741914,0.00184,66627.0,66626.0,0.6559583]
[1722452742148,0.00284,66627.0,66626.0,0.6589583]
[1722452742396,0.00284,66627.0,66626.0,0.6559583]
[1722452742397,0.00184,66627.0,66626.0,0.6559583]
[1722452742630,0.00224691,66627.0,66626.0,0.30416684]
[1722452742856,0.00324691,66627.0,66626.0,0.31116684]
[1722452743093,0.00324691,66627.0,66626.0,0.16107584]
[1722452743326,0.00124691,66627.0,66626.0,0.31718025]
[1722452743569,0.00084,66627.0,66626.0,0.61736325]
[1722452743782,0.00084,66627.0,66626.0,0.32018025]
[1722452743783,0.00184,66627.0,66626.0,0.32018025]
[1722452743987,0.00224691,66627.0,66626.0,0.17008925]
[1722452744672,0.45251391,66627.0,66626.0,0.15307584]
[1722452744922,0.00224691,66627.0,66626.0,0.15007584]
[1722452745121,0.00124691,66627.0,66626.0,0.295391]
[1722452745378,0.00324691,66627.0,66626.0,0.1493]
[1722452745615,0.00324691,66627.0,66626.0,0.15102309]
[1722452745834,0.45151391,66627.0,66626.0,0.15102309]
[1722452746033,0.45151391,66627.0,66626.0,0.15502309]
[1722452746034,0.79855509,66627.0,66626.0,0.15502309]
[1722452746244,0.75369191,66627.0,66626.0,0.1453]
[1722452746451,0.75369191,66627.0,66626.0,0.1503]
[1722452746653,0.84141828,66627.0,66626.0,0.1503]
[1722452746858,0.75369191,66627.0,66626.0,0.1453]
[1722452747110,0.8434194,66627.0,66626.0,0.1453]
[1722452747336,0.75369191,66627.0,66626.0,0.1453]
[1722452748275,0.75369191,66627.0,66620.0,0.1405]
[1722452748276,0.75091891,66621.0,66620.0,0.1405]
[1722452748515,0.75091891,66621.0,66620.0,0.0764]
[1722452748516,1.20067563,66621.0,66620.0,0.0764]
[1722452748741,0.75097691,66616.0,66615.0,0.0641]
[1722452748943,1.05120491,66616.0,66615.0,0.0641]
[1722452749423,0.75097691,66616.0,66615.0,0.0641]
[1722452749850,0.86316471,66616.0,66615.0,0.0641]
[1722452749969,0.57093422,66616.0,66615.0,0.0641]
[1722452750367,0.00996111,66616.0,66615.0,0.0641]
[1722452750570,0.11215488,66616.0,66615.0,0.07084503]
[1722452750765,0.11370908,66616.0,66615.0,0.0798746]
[1722452750964,0.11370908,66616.0,66615.0,0.29896421]
[1722452751229,0.08972008,66616.0,66615.0,0.29896421]
[1722452751437,0.067281,66616.0,66615.0,0.29896421]
[1722452751640,0.03240691,66616.0,66615.0,0.29896421]
[1722452751852,0.01596111,66616.0,66615.0,0.14784821]
[1722452752071,0.21938625,66616.0,66615.0,0.14784821]
[1722452752284,0.21938625,66616.0,66615.0,0.08474821]
[1722452752285,0.76197691,66616.0,66615.0,0.08474821]
[1722452752513,1.2839101,66616.0,66615.0,0.001]
[1722452752689,0.75098691,66615.0,66614.0,1e-06]
[1722452752908,1.05121891,66615.0,66614.0,1e-06]
[1722452753727,0.45075491,66615.0,66614.0,1e-06]
[1722452753943,0.15552291,66615.0,66614.0,1e-06]
[1722452754351,0.75598691,66615.0,66614.0,1e-06]
[1722452754561,1.05621891,66615.0,66614.0,1e-06]
[1722452754799,1.14527983,66615.0,66614.0,1e-06]
[1722452755046,1.05621891,66615.0,66614.0,1e-06]
[1722452755260,1.05121891,66615.0,66614.0,1e-06]
[1722452755463,1.05621891,66615.0,66614.0,1e-06]
[1722452756078,1.05121891,66615.0,66614.0,1e-06]
[1722452756565,1.32625162,66615.0,66614.0,1e-06]
[1722452756820,1.64584359,66615.0,66614.0,1e-06]
[1722452757137,1.71504359,66615.0,66614.0,1e-06]
[1722452757412,1.73804359,66615.0,66614.0,0.001001]
[1722452757689,1.83804359,66615.0,66614.0,0.001001]
[1722452758715,1.84904359,66615.0,66614.0,0.001001]
[1722452758996,1.83504359,66615.0,66614.0,1e-06]
[1722452759498,1.83804359,66615.0,66614.0,0.001001]
[1722452759969,1.84904359,66615.0,66614.0,0.001001]
[1722452760448,1.6353626,66615.0,66614.0,0.001001]
[1722452760693,0.88534688,66615.0,66614.0,0.080401]
[1722452760950,0.8853471,66615.0,66614.0,0.080401]
[1722452761194,1.17621891,66615.0,66614.0,0.080401]
[1722452761470,1.17621891,66615.0,66614.0,0.001001]
[1722452761471,1.53921691,66615.0,66614.0,0.001001]
[1722452761991,2.01092321,66615.0,66614.0,0.001001]
[1722452762225,1.71069121,66615.0,66614.0,0.001001]
[1722452762464,1.69069121,66615.0,66614.0,0.001001]
[1722452762708,1.99092321,66615.0,66614.0,0.001001]
[1722452762985,1.69069121,66615.0,66614.0,0.001001]
[1722452763235,1.33513064,66615.0,66614.0,0.001001]
[1722452763458,1.33513129,66615.0,66614.0,0.081901]
[1722452763663,1.3444919,66615.0,66614.0,0.081901]
[1722452763866,1.34449146,66615.0,66614.0,0.081901]
[1722452764282,0.89470774,66615.0,66614.0,0.081901]
[1722452764490,0.79470774,66615.0,66614.0,0.081901]
[1722452764740,0.48511557,66615.0,66614.0,0.081901]
[1722452764951,0.47575491,66615.0,66614.0,0.081901]
[1722452765162,1.07621891,66615.0,66614.0,0.081901]
[1722452765365,1.08557894,66615.0,66614.0,0.081901]
[1722452765545,1.08557894,66615.0,66614.0,0.001001]
[1722452766130,0.78534694,66615.0,66614.0,0.001001]
[1722452766357,0.48511494,66615.0,66614.0,0.001001]
[1722452766613,0.47575491,66615.0,66614.0,0.001001]
[1722452766953,0.77598691,66615.0,66614.0,0.001001]
[1722452768250,0.78534672,66615.0,66614.0,0.001001]
[1722452768464,1.08557872,66615.0,66614.0,0.001001]
[1722452769200,0.78534672,66615.0,66614.0,0.001001]
[1722452769419,0.03476672,66615.0,66614.0,0.001001]
[1722452769638,0.03476672,66615.0,66614.0,0.286919]
[1722452769639,0.02540691,66615.0,66614.0,0.286919]
[1722452769877,0.02540691,66615.0,66614.0,0.3456856]
[1722452769878,0.06987127,66615.0,66614.0,0.3456856]
[1722452770100,0.02540691,66615.0,66614.0,0.65167728]
[1722452770337,0.02540691,66615.0,66614.0,0.14255568]
[1722452770338,0.17552291,66615.0,66614.0,0.14255568]
[1722452770546,0.20639125,66615.0,66614.0,0.14155568]
[1722452770751,0.05627525,66615.0,66614.0,0.29167368]
[1722452770952,0.00040691,66615.0,66614.0,0.6520413]
[1722452771158,0.00040691,66615.0,66614.0,0.2016863]
[1722452771367,0.04527854,66615.0,66614.0,0.6550413]
[1722452771622,0.04487163,66617.0,66616.0,0.450342]
[1722452771860,0.04487163,66622.0,66621.0,0.829812]
[1722452772278,0.00084,66627.0,66626.0,0.450274]
[1722452772471,0.00124691,66627.0,66626.0,0.595874]
[1722452772695,0.00124691,66627.0,66626.0,0.6617343]
[1722452772696,0.00084,66627.0,66626.0,0.6617343]
[1722452773324,0.00084,66627.0,66626.0,0.3615513]
[1722452773528,0.00084,66627.0,66626.0,0.2124603]
[1722452773701,0.00124691,66627.0,66626.0,0.2124603]
[1722452774106,0.00124691,66627.0,66626.0,0.3625513]
[1722452774521,0.00124691,66627.0,66626.0,0.2124603]
[1722452774767,0.00124691,66627.0,66626.0,0.2154603]
[1722452774919,0.00124691,66627.0,66626.0,0.2144603]
[1722452775122,0.00124691,66627.0,66626.0,0.3645513]
[1722452775448,0.00324691,66627.0,66626.0,0.3645513]
[1722452775645,0.00124691,66627.0,66626.0,0.15132968]
[1722452775992,0.00124691,66627.0,66626.0,0.15432968]
[1722452776197,0.00324691,66627.0,66626.0,0.15132968]
[1722452776614,0.00084,66627.0,66626.0,0.37653862]
[1722452776822,0.00284,66627.0,66626.0,0.22644762]
[1722452777021,0.00324691,66627.0,66626.0,0.15132968]
[1722452777148,0.15333591,66627.0,66626.0,0.15132968]
[1722452777358,0.00324691,66627.0,66626.0,0.15432968]
[1722452777561,0.00324691,66627.0,66626.0,0.1486]
[1722452777761,0.00324691,66627.0,66626.0,0.1456]
[1722452777980,0.00324691,66627.0,66626.0,0.15132968]
[1722452778157,0.00427833,66627.0,66626.0,0.15432968]
[1722452778397,0.00324691,66627.0,66626.0,0.15132968]
[1722452778620,0.00124691,66627.0,66626.0,0.15432968]
[1722452778800,0.15243899,66627.0,66626.0,0.15432968]
[1722452778969,0.4974793,66627.0,66626.0,0.1486]
[1722452779174,0.06854037,66627.0,66626.0,0.1486]
[1722452779420,0.00224691,66627.0,66626.0,0.1543268]
[1722452779806,0.45251391,66627.0,66626.0,0.1543268]
[1722452779894,0.4527343,66627.0,66626.0,0.1543268]
[1722452780098,0.4527343,66627.0,66626.0,0.1486]
[1722452780294,0.15333591,66627.0,66626.0,0.1486]
[1722452780526,0.00324691,66627.0,66626.0,0.1486]
[1722452780733,0.00444875,66627.0,66626.0,0.1811965]
[1722452780961,0.19821126,66627.0,66626.0,0.1513268]
[1722452781106,0.45351391,66627.0,66626.0,0.1513268]
[1722452781296,0.45351391,66627.0,66626.0,0.1533268]
[1722452781297,0.52082442,66627.0,66626.0,0.1533268]
[1722452781498,0.07055742,66627.0,66626.0,0.1533268]
[1722452781694,0.00324691,66627.0,66626.0,0.1533268]
[1722452781894,0.49638855,66627.0,66626.0,0.1533268]
[1722452782100,0.49638855,66627.0,66626.0,0.1476]
[1722452782101,0.45128494,66627.0,66626.0,0.1476]
[1722452782300,0.15110694,66627.0,66626.0,0.1476]
[1722452782540,0.15410694,66627.0,66626.0,0.16236]
[1722452782699,0.15410694,66627.0,66626.0,0.16808718]
[1722452782700,0.04889279,66627.0,66626.0,0.16808718]
[1722452783118,0.19898179,66627.0,66626.0,0.16808718]
[1722452783326,0.19898179,66627.0,66626.0,0.1456]
[1722452783566,0.19598179,66627.0,66626.0,0.15132457]
[1722452783776,0.49615979,66627.0,66626.0,0.15132457]
[1722452783989,1.05164094,66627.0,66626.0,0.0813]
[1722452784404,0.86520426,66627.0,66626.0,0.0813]
[1722452784599,0.75301714,66627.0,66626.0,0.0813]
[1722452784826,0.86365006,66627.0,66626.0,0.002]
[1722452785027,0.75446294,66627.0,66626.0,0.002]
[1722452785229,0.86665948,66627.0,66626.0,0.002]
[1722452785470,0.86366608,66627.0,66626.0,0.002]
[1722452785691,0.75146294,66627.0,66626.0,0.002]
[1722452785908,1.29295683,66627.0,66626.0,0.002]
[1722452786111,1.27545063,66627.0,66626.0,0.002]
[1722452786502,1.30545063,66627.0,66626.0,0.002]
[1722452786649,1.53692865,66627.0,66626.0,0.002]
[1722452786850,1.85410665,66627.0,66626.0,0.002]
[1722452787056,1.71942863,66627.0,66626.0,0.002]
[1722452787309,1.05121891,66615.0,66614.0,1e-06]
[1722452787513,1.2101286,66615.0,66614.0,1e-06]
[1722452788832,1.20077063,66615.0,66614.0,1e-06]
[1722452789036,1.22413078,66615.0,66614.0,0.001001]
[1722452789447,1.35885142,66615.0,66614.0,0.001001]
[1722452789675,0.47411468,66615.0,66614.0,1e-06]
[1722452789916,0.16452291,66615.0,66614.0,0.080501]
[1722452790112,0.16452291,66615.0,66614.0,0.1498011]
[1722452790289,0.16452291,66615.0,66614.0,0.1555462]
[1722452790290,0.28978512,66615.0,66614.0,0.1555462]
[1722452790489,0.59001712,66615.0,66614.0,0.1555462]
[1722452790901,0.28978512,66615.0,66614.0,0.1555462]
[1722452791118,0.26278512,66615.0,66614.0,0.1555462]
[1722452791318,0.11266912,66615.0,66614.0,0.1474461]
[1722452791527,0.41285195,66615.0,66614.0,0.142701]
[1722452791729,0.02280006,66615.0,66614.0,0.142701]
[1722452791940,0.09722302,66615.0,66614.0,0.1860465]
[1722452792137,0.09722302,66615.0,66614.0,0.19179519]
[1722452792138,0.07476849,66615.0,66614.0,0.19179519]
[1722452792529,0.08763696,66615.0,66614.0,0.64315019]
[1722452792781,0.012,66615.0,66614.0,0.34291319]
[1722452792987,0.012,66615.0,66614.0,0.34191319]
[1722452792988,0.00040691,66615.0,66614.0,0.34191319]
[1722452793255,0.00040691,66615.0,66614.0,0.64215019]
[1722452793256,0.00640691,66615.0,66614.0,0.64215019]
[1722452793421,0.00540691,66615.0,66614.0,0.64215019]
[1722452793854,0.005,66615.0,66614.0,0.94238719]
[1722452794087,0.005,66615.0,66614.0,0.64215019]
[1722452794316,0.00540691,66615.0,66614.0,0.34191319]
[1722452794552,0.00540691,66615.0,66614.0,0.14744969]
[1722452794792,0.75598691,66615.0,66614.0,0.15044969]
[1722452795007,0.82334849,66615.0,66614.0,0.15044969]
[1722452795248,0.75098691,66615.0,66614.0,0.144701]
[1722452795476,1.16772095,66615.0,66614.0,0.003001]
[1722452795693,1.32763214,66615.0,66614.0,0.003001]
[1722452796199,1.62686414,66615.0,66614.0,0.003001]
[1722452796417,1.62686414,66615.0,66614.0,1e-06]
[1722452796639,1.63286414,66615.0,66614.0,0.002001]
[1722452796888,1.63186414,66615.0,66614.0,1e-06]
[1722452798024,1.84913687,66615.0,66614.0,1e-06]
[1722452798313,1.84913687,66615.0,66608.0,1e-06]
[1722452798314,1.38157191,66609.0,66608.0,1e-06]
[1722452798590,2.21857527,66609.0,66608.0,1e-06]
[1722452798830,2.05811627,66609.0,66608.0,1e-06]
[1722452799114,2.04811627,66609.0,66608.0,1e-06]
[1722452799365,2.20759757,66609.0,66608.0,1e-06]
[1722452799605,2.50785657,66609.0,66608.0,1e-06]
[1722452800084,2.52185657,66609.0,66608.0,0.001001]
[1722452800345,2.52585657,66609.0,66608.0,0.001001]
[1722452800606,2.51185657,66609.0,66608.0,0.001001]
[1722452800826,2.11383345,66609.0,66608.0,0.001001]
[1722452801071,2.11342654,66609.0,66608.0,0.001001]
[1722452801329,2.12742654,66609.0,66608.0,0.001001]
[1722452801541,2.13783345,66609.0,66608.0,0.001001]
[1722452802048,2.09826755,66609.0,66608.0,1e-06]
[1722452802314,1.96278625,66609.0,66608.0,1e-06]
[1722452802926,1.63848625,66609.0,66608.0,1e-06]
[1722452803208,1.62448625,66609.0,66608.0,1e-06]
[1722452803682,1.32422725,66609.0,66608.0,1e-06]
[1722452803929,1.22323864,66609.0,66608.0,1e-06]
[1722452804206,1.35879037,66609.0,66608.0,1e-06]
[1722452804447,1.37279037,66609.0,66608.0,1e-06]
[1722452804668,1.07931291,66609.0,66608.0,1e-06]
[1722452804965,1.3311664,66609.0,66608.0,1e-06]
[1722452805191,1.17467431,66609.0,66608.0,1e-06]
[1722452805473,1.18867431,66609.0,66608.0,1e-06]
[1722452805668,0.75105391,66609.0,66608.0,0.081001]
[1722452806190,0.76505391,66609.0,66608.0,0.081001]
[1722452806440,0.87717763,66609.0,66608.0,0.081001]
[1722452806684,0.75105391,66609.0,66608.0,0.081001]
[1722452806888,0.15053591,66609.0,66608.0,0.146401]
[1722452807101,0.53006821,66609.0,66608.0,0.146401]
[1722452807301,0.53006821,66609.0,66608.0,0.15326363]
[1722452807302,0.47679491,66609.0,66608.0,0.15326363]
[1722452807504,0.55407169,66609.0,66608.0,0.146401]
[1722452807705,0.55407169,66609.0,66608.0,0.15326363]
[1722452807938,0.53206904,66609.0,66608.0,0.146401]
[1722452808089,0.46879491,66609.0,66608.0,0.146401]
[1722452808514,0.46879491,66609.0,66608.0,0.15326363]
[1722452808714,0.45479491,66609.0,66608.0,0.15326363]
[1722452808953,0.46279491,66609.0,66608.0,0.15326363]
[1722452809699,0.01240691,66609.0,66608.0,0.15326363]
[1722452810463,0.012,66609.0,66608.0,0.674291]
[1722452810728,0.012,66609.0,66608.0,0.974555]
[1722452810931,0.008,66609.0,66608.0,1.274819]
[1722452811402,0.008,66609.0,66608.0,1.42437072]
[1722452811403,0.012,66609.0,66608.0,1.42437072]
[1722452811636,0.008,66609.0,66608.0,1.42437072]